fUST/lending_fUST_20240323
["ID","MTS","AMOUNT","RATE_DAILY","PERIOD"]
[320089955,1711147838424,-500.0,0.00024657,2]
[320089956,1711147838434,-500.0,0.00024657,2]
[320089957,1711147838443,-500.0,0.00024657,2]
[320089958,1711147838453,-500.0,0.00024657,2]
[320089959,1711147838462,-500.0,0.00024657,2]
[320089960,1711147838471,-987.09,0.00024657,2]
[320089961,1711147838480,-500.0,0.00024657,2]
[320089962,1711147838489,-601.68428916,0.00024657,2]
[320089963,1711147838498,-500.0,0.00024657,2]
[320089964,1711147838507,-449.0147999,0.00024657,2]
[320089965,1711147838517,-500.0,0.00024657,2]
[320089966,1711147838526,-2101.45,0.00024657,2]
[320089967,1711147838535,-500.0,0.00024657,2]
[320089968,1711147838544,-500.0,0.00024657,2]
[320089969,1711147838553,-500.0,0.00024657,2]
[320089970,1711147838561,-500.0,0.00024657,2]
[320089971,1711147838570,-280.62819496,0.00024657,2]
[320089972,1711147838579,-618.12,0.00024657,2]
[320089973,1711147838588,-500.0,0.00024657,2]
[320089974,1711147838597,-500.0,0.00024657,2]
[320089975,1711147838605,-500.0,0.00024657,2]
[320089976,1711147838615,-500.0,0.00024657,2]
[320089977,1711147838625,-1117.82,0.00024657,2]
[320089978,1711147838637,-500.0,0.00024657,2]
[320089979,1711147838649,-500.0,0.00024657,2]
[320089980,1711147838658,-618.80697838,0.00024657,2]
[320089981,1711147838670,-500.0,0.00024657,2]
[320089982,1711147838679,-500.0,0.00024657,2]
[320089983,1711147838689,-500.0,0.00024657,2]
[320089984,1711147838699,-500.0,0.00024657,2]
[320089985,1711147838709,-500.0,0.00024657,2]
[320089986,1711147838718,-500.0,0.00024657,2]
[320089987,1711147838729,-500.0,0.00024657,2]
[320089988,1711147838739,-162.17961263,0.00024657,2]
[320089989,1711147838748,-500.0,0.00024657,2]
[320089990,1711147838757,-500.0,0.00024657,2]
[320089991,1711147838765,-212.24,0.00024657,2]
[320089992,1711147838774,-500.0,0.00024657,2]
[320089993,1711147838783,-500.0,0.00024657,2]
[320089994,1711147838793,-511.36,0.00024657,2]
[320089995,1711147838801,-2180.31,0.00024657,2]
[320089996,1711147838810,-1365.53,0.00024657,2]
[320089997,1711147838819,-500.0,0.00024657,2]
[320089998,1711147838828,-1320.71,0.00024657,2]
[320089999,1711147838837,-500.0,0.00024657,2]
[320090000,1711147838846,-1118.76,0.00024657,2]
[320090001,1711147838855,-500.0,0.00024657,2]
[320090002,1711147838864,-3025.12,0.00024657,2]
[320090003,1711147838873,-500.0,0.00024657,2]
[320090004,1711147838882,-1138.4,0.00024657,2]
[320090005,1711147838892,-593.92,0.00024657,2]
[320090006,1711147838901,-1418.75,0.00024657,2]
[320090007,1711147838911,-19668.55,0.00024657,2]
[320090008,1711147838922,-500.0,0.00024657,2]
[320090009,1711147838932,-1548.24,0.00024657,2]
[320090010,1711147838943,-15099.51,0.00024657,2]
[320090011,1711147838952,-500.0,0.00024657,2]
[320090012,1711147838961,-500.0,0.00024657,2]
[320090013,1711147838970,-500.0,0.00024657,2]
[320090014,1711147838980,-500.0,0.00024657,2]
[320090015,1711147838991,-408.19044783,0.00024657,2]
[320090016,1711147839002,-1940.87,0.00024657,2]
[320090017,1711147839011,-1590.14,0.00024657,2]
[320090018,1711147839023,-500.0,0.00024657,2]
[320090019,1711147839034,-500.0,0.00024657,2]
[320090020,1711147839043,-500.0,0.00024657,2]
[320090021,1711147839052,-500.0,0.00024657,2]
[320090022,1711147839061,-500.0,0.00024657,2]
[320090023,1711147839070,-500.0,0.00024657,2]
[320090024,1711147839079,-622.0458634,0.00024657,2]
[320090025,1711147839088,-500.0,0.00024657,2]
[320090026,1711147839097,-318.33077286,0.00024657,2]
[320090027,1711147839107,-246.28499172,0.00024657,2]
[320090028,1711147839116,-500.0,0.00024657,2]
[320090029,1711147839125,-500.0,0.00024657,2]
[320090030,1711147839135,-500.0,0.00024657,2]
[320090031,1711147839146,-500.0,0.00024657,2]
[320090032,1711147839155,-520.81521444,0.00024657,2]
[320090033,1711147839164,-523.6,0.00024657,2]
[320090034,1711147839173,-1223.28,0.00024657,2]
[320090035,1711147839182,-500.0,0.00024657,2]
[320090036,1711147839191,-500.0,0.00024657,2]
[320090037,1711147839200,-500.0,0.00024657,2]
[320090038,1711147839209,-500.0,0.00024657,2]
[320090039,1711147839218,-11332.57,0.00024657,2]
[320090041,1711147839227,-500.0,0.00024657,2]
[320090042,1711147839235,-500.0,0.00024657,2]
[320090043,1711147839244,-500.0,0.00024657,2]
[320090044,1711147839253,-500.0,0.00024657,2]
[320090045,1711147839262,-500.0,0.00024657,2]
[320090046,1711147839270,-500.0,0.00024657,2]
[320090047,1711147839280,-821.02,0.00024657,2]
[320090048,1711147839288,-3860.25,0.00024657,2]
[320090049,1711147839297,-500.0,0.00024657,2]
[320090050,1711147839306,-500.0,0.00024657,2]
[320090051,1711147839315,-241.28784113,0.00024657,2]
[320090052,1711147839324,-500.0,0.00024657,2]
[320090053,1711147839333,-500.0,0.00024657,2]
[320090054,1711147839342,-3007.45,0.00024657,2]
[320090055,1711147839351,-500.0,0.00024657,2]
[320090056,1711147839360,-500.0,0.00024657,2]
[320090057,1711147839369,-500.0,0.00024657,2]
[320090058,1711147839378,-500.0,0.00024657,2]
[320090059,1711147839389,-500.0,0.00024657,2]
[320090060,1711147839398,-500.0,0.00024657,2]
[320090061,1711147839407,-500.0,0.00024657,2]
[320090062,1711147839416,-500.0,0.00024657,2]
[320090063,1711147839425,-500.0,0.00024657,2]
[320090064,1711147839434,-1587.69,0.00024657,2]
[320090065,1711147839443,-500.0,0.00024657,2]
[320090066,1711147839452,-848.53,0.00024657,2]
[320090067,1711147839461,-20421.14,0.00024657,2]
[320090068,1711147839470,-500.0,0.00024657,2]
[320090069,1711147839479,-500.0,0.00024657,2]
[320090070,1711147839488,-3440.28,0.00024657,2]
[320090072,1711147839498,-500.0,0.00024657,2]
[320090074,1711147839507,-500.0,0.00024657,2]
[320090075,1711147839516,-521.16,0.00024657,2]
[320090077,1711147839526,-500.0,0.00024657,2]
[320090079,1711147839535,-6870.76,0.00024657,2]
[320090080,1711147839544,-1214.81,0.00024657,2]
[320090081,1711147839669,-500.0,0.00024657,2]
[320090082,1711147839679,-500.0,0.00024657,2]
[320090083,1711147839689,-500.0,0.00024657,2]
[320090084,1711147839698,-1220.25,0.00024657,2]
[320090085,1711147839707,-500.0,0.00024657,2]
[320090086,1711147839717,-1473.04894524,0.00024831,2]
[320090087,1711147839726,-153.0,0.00025014,2]
[320090088,1711147839736,-1473.04894524,0.00025105,2]
[320090089,1711147839745,-153.0,0.000252,2]
[320090090,1711147839754,-500.0,0.00025205,2]
[320090091,1711147839763,-500.0,0.00025205,2]
[320090092,1711147839772,-500.0,0.00025205,2]
[320090093,1711147839781,-500.0,0.00025205,2]
[320090094,1711147839791,-546.58,0.00025205,2]
[320090095,1711147839800,-500.0,0.00025205,2]
[320090096,1711147839810,-500.0,0.00025205,2]
[320090097,1711147839819,-500.0,0.00025205,2]
[320090098,1711147839829,-500.0,0.00025205,2]
[320090100,1711147839838,-500.0,0.00025205,2]
[320090101,1711147839847,-500.0,0.00025205,2]
[320090102,1711147839857,-500.0,0.00025205,2]
[320090103,1711147839866,-1289.75,0.00025205,2]
[320090104,1711147839875,-297.11841611,0.00025205,2]
[320090106,1711147839885,-500.0,0.00025205,2]
[320090107,1711147839894,-500.0,0.00025205,2]
[320090108,1711147839903,-500.0,0.00025205,2]
[320090109,1711147839914,-500.0,0.00025205,2]
[320090110,1711147839923,-500.0,0.00025205,2]
[320090111,1711147839933,-500.0,0.00025205,2]
[320090112,1711147839943,-689.2,0.00025205,2]
[320090113,1711147839952,-628.5,0.00025205,2]
[320090114,1711147839962,-1273.73,0.00025205,2]
[320090115,1711147839973,-500.0,0.00025205,2]
[320090116,1711147839983,-500.0,0.00025205,2]
[320090117,1711147839993,-500.0,0.00025205,2]
[320090118,1711147840002,-500.0,0.00025205,2]
[320090119,1711147840012,-500.0,0.00025205,2]
[320090120,1711147840021,-500.0,0.00025205,2]
[320090121,1711147840031,-500.0,0.00025205,2]
[320090122,1711147840040,-993.48,0.00025205,2]
[320090123,1711147840049,-500.0,0.00025205,2]
[320090124,1711147840058,-362.36989471,0.00025205,2]
[320090125,1711147840067,-500.0,0.00025205,2]
[320090126,1711147840076,-500.0,0.00025205,2]
[320090127,1711147840085,-500.0,0.00025205,2]
[320090128,1711147840095,-500.0,0.00025205,2]
[320090129,1711147840104,-987.09,0.00025205,2]
[320090130,1711147840113,-500.0,0.00025205,2]
[320090131,1711147840122,-2101.45,0.00025205,2]
[320090132,1711147840132,-500.0,0.00025205,2]
[320090133,1711147840141,-500.0,0.00025205,2]
[320090134,1711147840151,-500.0,0.00025205,2]
[320090135,1711147840161,-618.12,0.00025205,2]
[320090136,1711147840170,-500.0,0.00025205,2]
[320090137,1711147840180,-500.0,0.00025205,2]
[320090138,1711147840189,-1117.82,0.00025205,2]
[320090139,1711147840198,-500.0,0.00025205,2]
[320090140,1711147840207,-500.0,0.00025205,2]
[320090141,1711147840216,-500.0,0.00025205,2]
[320090142,1711147840227,-500.0,0.00025205,2]
[320090143,1711147840236,-500.0,0.00025205,2]
[320090144,1711147840245,-500.0,0.00025205,2]
[320090145,1711147840254,-500.0,0.00025205,2]
[320090146,1711147840263,-500.0,0.00025205,2]
[320090147,1711147840272,-500.0,0.00025205,2]
[320090148,1711147840282,-511.36,0.00025205,2]
[320090149,1711147840291,-2180.31,0.00025205,2]
[320090150,1711147840300,-1365.53,0.00025205,2]
[320090151,1711147840309,-500.0,0.00025205,2]
[320090152,1711147840318,-1320.71,0.00025205,2]
[320090153,1711147840328,-500.0,0.00025205,2]
[320090154,1711147840337,-1118.76,0.00025205,2]
[320090155,1711147840347,-500.0,0.00025205,2]
[320090156,1711147840356,-3025.12,0.00025205,2]
[320090157,1711147840365,-500.0,0.00025205,2]
[320090158,1711147840374,-1138.4,0.00025205,2]
[320090159,1711147840383,-593.92,0.00025205,2]
[320090160,1711147840393,-1418.75,0.00025205,2]
[320090161,1711147840402,-19668.55,0.00025205,2]
[320090162,1711147840411,-500.0,0.00025205,2]
[320090163,1711147840420,-1548.24,0.00025205,2]
[320090164,1711147840429,-15099.51,0.00025205,2]
[320090165,1711147840438,-1940.87,0.00025205,2]
[320090166,1711147840447,-1590.14,0.00025205,2]
[320090167,1711147840457,-500.0,0.00025205,2]
[320090168,1711147840466,-500.0,0.00025205,2]
[320090169,1711147840475,-500.0,0.00025205,2]
[320090170,1711147840485,-500.0,0.00025205,2]
[320090171,1711147840493,-500.0,0.00025205,2]
[320090172,1711147840502,-500.0,0.00025205,2]
[320090173,1711147840511,-410.9932973,0.00025205,2]
[320090174,1711147840520,-500.0,0.00025205,2]
[320090175,1711147840529,-500.0,0.00025205,2]
[320090176,1711147840538,-523.6,0.00025205,2]
[320090177,1711147840547,-1223.28,0.00025205,2]
[320090178,1711147840556,-500.0,0.00025205,2]
[320090179,1711147840565,-500.0,0.00025205,2]
[320090180,1711147840574,-500.0,0.00025205,2]
[320090181,1711147840583,-11332.57,0.00025205,2]
[320090182,1711147840592,-500.0,0.00025205,2]
[320090183,1711147840601,-500.0,0.00025205,2]
[320090184,1711147840610,-821.02,0.00025205,2]
[320090185,1711147840619,-3860.25,0.00025205,2]
[320090186,1711147840628,-500.0,0.00025205,2]
[320090187,1711147840641,-500.0,0.00025205,2]
[320090188,1711147840651,-3007.45,0.00025205,2]
[320090189,1711147840660,-500.0,0.00025205,2]
[320090190,1711147840670,-500.0,0.00025205,2]
[320090191,1711147840679,-500.0,0.00025205,2]
[320090192,1711147840689,-580.19519692,0.00025205,2]
[320090193,1711147840698,-1587.69,0.00025205,2]
[320090194,1711147840707,-500.0,0.00025205,2]
[320090195,1711147840716,-848.53,0.00025205,2]
[320090196,1711147840726,-20421.14,0.00025205,2]
[320090197,1711147840736,-500.0,0.00025205,2]
[320090198,1711147840745,-3440.28,0.00025205,2]
[320090199,1711147840754,-500.0,0.00025205,2]
[320090200,1711147840763,-521.16,0.00025205,2]
[320090201,1711147840772,-1214.81,0.00025205,2]
[320090202,1711147840782,-6870.76,0.00025205,2]
[320090203,1711147840791,-500.0,0.00025205,2]
[320090204,1711147840801,-500.0,0.00025205,2]
[320090205,1711147840810,-500.0,0.00025205,2]
[320090206,1711147840820,-1220.25,0.00025205,2]
[320090207,1711147840829,-306.0,0.00025205,2]
[320090208,1711147840838,-153.0,0.00025256,2]
[320090209,1711147840847,-306.0,0.00025342,2]
[320090210,1711147840856,-1473.04894524,0.00025378,2]
[320090211,1711147840865,-153.0,0.00025479,2]
[320090212,1711147840875,-306.0,0.00025479,2]
[320090213,1711147840884,-153.0,0.00025479,2]
[320090214,1711147840892,-306.0,0.00025479,2]
[320090215,1711147840902,-201.8484782,0.00025479,2]
[320090216,1711147840910,-194.35359503,0.00025488,2]
[320090217,1711147840919,-329.83998041,0.00025495,2]
[320090218,1711147840929,-153.0,0.000255,2]
[320090219,1711147840939,-151.80276999,0.00025539,2]
[320090220,1711147840948,-68246.25631483,0.00025553,2]
[320090221,1711147840958,-153.0,0.000256,2]
[320090222,1711147840967,-153.0,0.000256,2]
[320090223,1711147840977,-153.0,0.000256,2]
[320090224,1711147840986,-1473.04894524,0.00025652,2]
[320090225,1711147840995,-2657.68451481,0.00025653,2]
[320090226,1711147841004,-153.0,0.00025671,2]
[320090227,1711147841014,-153.0,0.00025671,2]
[320090228,1711147841023,-153.0,0.00025671,2]
[320090229,1711147841032,-153.0,0.00025671,2]
[320090230,1711147841041,-15482.38,0.0002575,2]
[320090231,1711147841051,-500.0,0.0002575,2]
[320090232,1711147841060,-43361.11185924,0.00025751,2]
[320090233,1711147841069,-215.89741008,0.00025752,2]
[320090234,1711147841078,-313.26288222,0.00025752,2]
[320090235,1711147841088,-7854.14035029,0.00025752,2]
[320090236,1711147841097,-281.56254263,0.00025753,2]
[320090237,1711147841107,-500.0,0.00025753,2]
[320090238,1711147841117,-500.0,0.00025753,2]
[320090239,1711147841126,-546.58,0.00025753,2]
[320090240,1711147841138,-500.0,0.00025753,2]
[320090241,1711147841149,-500.0,0.00025753,2]
[320090242,1711147841159,-500.0,0.00025753,2]
[320090243,1711147841167,-500.0,0.00025753,2]
[320090244,1711147841176,-500.0,0.00025753,2]
[320090245,1711147841186,-500.0,0.00025753,2]
[320090246,1711147841195,-1289.75,0.00025753,2]
[320090247,1711147841204,-500.0,0.00025753,2]
[320090248,1711147841213,-500.0,0.00025753,2]
[320090249,1711147841222,-500.0,0.00025753,2]
[320090250,1711147841231,-500.0,0.00025753,2]
[320090251,1711147841240,-500.0,0.00025753,2]
[320090252,1711147841249,-500.0,0.00025753,2]
[320090253,1711147841258,-689.2,0.00025753,2]
[320090254,1711147841267,-628.5,0.00025753,2]
[320090255,1711147841276,-1273.73,0.00025753,2]
[320090256,1711147841286,-500.0,0.00025753,2]
[320090257,1711147841295,-500.0,0.00025753,2]
[320090258,1711147841304,-500.0,0.00025753,2]
[320090259,1711147841313,-500.0,0.00025753,2]
[320090260,1711147841322,-500.0,0.00025753,2]
[320090261,1711147841332,-500.0,0.00025753,2]
[320090262,1711147841341,-500.0,0.00025753,2]
[320090263,1711147841350,-993.48,0.00025753,2]
[320090264,1711147841359,-567.30309527,0.00025753,2]
[320090265,1711147841368,-500.0,0.00025753,2]
[320090266,1711147841377,-500.0,0.00025753,2]
[320090267,1711147841389,-987.09,0.00025753,2]
[320090268,1711147841398,-500.0,0.00025753,2]
[320090269,1711147841407,-2101.45,0.00025753,2]
[320090270,1711147841417,-500.0,0.00025753,2]
[320090271,1711147841427,-500.0,0.00025753,2]
[320090272,1711147841437,-500.0,0.00025753,2]
[320090273,1711147841447,-618.12,0.00025753,2]
[320090274,1711147841456,-500.0,0.00025753,2]
[320090275,1711147841466,-1117.82,0.00025753,2]
[320090276,1711147841475,-500.0,0.00025753,2]
[320090277,1711147841484,-500.0,0.00025753,2]
[320090278,1711147841493,-471.19100394,0.00025753,2]
[320090279,1711147841503,-568.44862495,0.00025753,2]
[320090280,1711147841513,-500.0,0.00025753,2]
[320090281,1711147841521,-500.0,0.00025753,2]
[320090282,1711147841531,-500.0,0.00025753,2]
[320090283,1711147841540,-500.0,0.00025753,2]
[320090284,1711147841549,-511.36,0.00025753,2]
[320090285,1711147841559,-2180.31,0.00025753,2]
[320090286,1711147841570,-1365.53,0.00025753,2]
[320090287,1711147841579,-500.0,0.00025753,2]
[320090288,1711147841588,-1320.71,0.00025753,2]
[320090289,1711147841598,-500.0,0.00025753,2]
[320090290,1711147841607,-1118.76,0.00025753,2]
[320090291,1711147841616,-540.37427772,0.00025753,2]
[320090292,1711147841625,-3025.12,0.00025753,2]
[320090293,1711147841638,-500.0,0.00025753,2]
[320090294,1711147841650,-1138.4,0.00025753,2]
[320090295,1711147841659,-593.92,0.00025753,2]
[320090296,1711147841678,-1418.75,0.00025753,2]
[320090297,1711147841690,-19668.55,0.00025753,2]
[320090298,1711147841700,-500.0,0.00025753,2]
[320090299,1711147841709,-1548.24,0.00025753,2]
[320090300,1711147841719,-15099.51,0.00025753,2]
[320090301,1711147841728,-1940.87,0.00025753,2]
[320090302,1711147841739,-1590.14,0.00025753,2]
[320090303,1711147841748,-500.0,0.00025753,2]
[320090304,1711147841758,-290.32762425,0.00025753,2]
[320090305,1711147841767,-500.0,0.00025753,2]
[320090306,1711147841776,-500.0,0.00025753,2]
[320090307,1711147841786,-295.84600888,0.00025753,2]
[320090308,1711147841795,-500.0,0.00025753,2]
[320090309,1711147841804,-500.0,0.00025753,2]
[320090310,1711147841814,-523.6,0.00025753,2]
[320090311,1711147841823,-1223.28,0.00025753,2]
[320090312,1711147841833,-209.72640167,0.00025753,2]
[320090313,1711147841842,-500.0,0.00025753,2]
[320090314,1711147841852,-11332.57,0.00025753,2]
[320090315,1711147841861,-500.0,0.00025753,2]
[320090316,1711147841872,-500.0,0.00025753,2]
[320090317,1711147841884,-821.02,0.00025753,2]
[320090318,1711147841893,-3860.25,0.00025753,2]
[320090319,1711147841903,-500.0,0.00025753,2]
[320090320,1711147841912,-501.60077712,0.00025753,2]
[320090321,1711147841922,-3007.45,0.00025753,2]
[320090322,1711147841933,-500.0,0.00025753,2]
[320090323,1711147841943,-500.0,0.00025753,2]
[320090324,1711147841952,-500.0,0.00025753,2]
[320090325,1711147841962,-1587.69,0.00025753,2]
[320090326,1711147841971,-500.0,0.00025753,2]
[320090327,1711147841980,-848.53,0.00025753,2]
[320090328,1711147841990,-20421.14,0.00025753,2]
[320090329,1711147842000,-500.0,0.00025753,2]
[320090330,1711147842009,-3440.28,0.00025753,2]
[320090331,1711147842019,-521.16,0.00025753,2]
[320090332,1711147842028,-1214.81,0.00025753,2]
[320090333,1711147842037,-6870.76,0.00025753,2]
[320090334,1711147842047,-500.0,0.00025753,2]
[320090335,1711147842056,-500.0,0.00025753,2]
[320090336,1711147842065,-500.0,0.00025753,2]
[320090337,1711147842075,-1220.25,0.00025753,2]
[320090338,1711147842084,-273.82756379,0.00026,2]
[320090339,1711147842094,-153.0,0.00026164,2]
[320090340,1711147842105,-153.0,0.00026164,2]
[320090341,1711147842114,-296.2283025,0.00026164,2]
[320090342,1711147842125,-1500.0,0.00026201,2]
[320090343,1711147842136,-15482.38,0.00026298,2]
[320090344,1711147842145,-500.0,0.00026298,2]
[320090345,1711147842154,-546.58,0.00026301,2]
[320090346,1711147842164,-500.0,0.00026301,2]
[320090347,1711147842173,-500.0,0.00026301,2]
[320090348,1711147842184,-500.0,0.00026301,2]
[320090349,1711147842193,-500.0,0.00026301,2]
[320090350,1711147842203,-500.0,0.00026301,2]
[320090351,1711147842211,-591.31827404,0.00026301,2]
[320090352,1711147842221,-1289.75,0.00026301,2]
[320090353,1711147842230,-500.0,0.00026301,2]
[320090354,1711147842239,-500.0,0.00026301,2]
[320090355,1711147842249,-500.0,0.00026301,2]
[320090356,1711147842257,-500.0,0.00026301,2]
[320090357,1711147842267,-500.0,0.00026301,2]
[320090359,1711147842276,-500.0,0.00026301,2]
[320090361,1711147842285,-689.2,0.00026301,2]
[320090363,1711147842294,-628.5,0.00026301,2]
[320090364,1711147842303,-1273.73,0.00026301,2]
[320090365,1711147842312,-500.0,0.00026301,2]
[320090366,1711147842322,-500.0,0.00026301,2]
[320090367,1711147842331,-500.0,0.00026301,2]
[320090368,1711147842341,-500.0,0.00026301,2]
[320090369,1711147842350,-500.0,0.00026301,2]
[320090370,1711147842359,-993.48,0.00026301,2]
[320090371,1711147842369,-500.0,0.00026301,2]
[320090372,1711147842378,-500.0,0.00026301,2]
[320090375,1711147842390,-987.09,0.00026301,2]
[320090376,1711147842399,-500.0,0.00026301,2]
[320090377,1711147842408,-2101.45,0.00026301,2]
[320090378,1711147842418,-500.0,0.00026301,2]
[320090379,1711147842427,-151.0,0.00026301,2]
[320090380,1711147842437,-500.0,0.00026301,2]
[320090382,1711147842446,-500.0,0.00026301,2]
[320090383,1711147842456,-618.12,0.00026301,2]
[320090385,1711147842465,-151.0,0.00026301,2]
[320090386,1711147842474,-500.0,0.00026301,2]
[320090387,1711147842483,-1117.82,0.00026301,2]
[320090388,1711147842492,-500.0,0.00026301,2]
[320090389,1711147842502,-151.0,0.00026301,2]
[320090390,1711147842513,-164.644053,0.00026301,2]
[320090391,1711147842522,-500.0,0.00026301,2]
[320090392,1711147842532,-164.644053,0.00026301,2]
[320090393,1711147842541,-500.0,0.00026301,2]
[320090394,1711147842550,-597.6359695,0.00026301,2]
[320090395,1711147842559,-500.0,0.00026301,2]
[320090396,1711147842569,-511.36,0.00026301,2]
[320090397,1711147842578,-2180.31,0.00026301,2]
[320090398,1711147842587,-1365.53,0.00026301,2]
[320090399,1711147842597,-500.0,0.00026301,2]
[320090400,1711147842746,-1320.71,0.00026301,2]
[320090401,1711147842756,-512.10467803,0.00026301,2]
[320090402,1711147842766,-1118.76,0.00026301,2]
[320090403,1711147842775,-151.0,0.00026301,2]
[320090404,1711147842784,-3025.12,0.00026301,2]
[320090405,1711147842793,-500.0,0.00026301,2]
[320090406,1711147842802,-1138.4,0.00026301,2]
[320090407,1711147842811,-593.92,0.00026301,2]
[320090408,1711147842820,-1418.75,0.00026301,2]
[320090409,1711147842829,-19668.55,0.00026301,2]
[320090410,1711147842838,-584.32890636,0.00026301,2]
[320090412,1711147842847,-1548.24,0.00026301,2]
[320090414,1711147842857,-15099.51,0.00026301,2]
[320090415,1711147842866,-1940.87,0.00026301,2]
[320090417,1711147842876,-1590.14,0.00026301,2]
[320090418,1711147842888,-500.0,0.00026301,2]
[320090419,1711147842898,-500.0,0.00026301,2]
[320090421,1711147842908,-479.46742238,0.00026301,2]
[320090422,1711147842917,-500.0,0.00026301,2]
[320090423,1711147842928,-500.0,0.00026301,2]
[320090425,1711147842937,-523.6,0.00026301,2]
[320090426,1711147842946,-1223.28,0.00026301,2]
[320090427,1711147842956,-500.0,0.00026301,2]
[320090428,1711147842966,-4947.04980017,0.00026301,2]
[320090429,1711147843070,-339.67198959,0.00026301,2]
[320090506,1711149031986,-155.02015262,0.00022595,2]
[320090508,1711149031996,-174.289409,0.00022596,2]
[320090510,1711149032006,-192.9422964,0.00022647,2]
[320090512,1711149032016,-2272.7655014,0.00022888,2]
[320090514,1711149032028,-22627.2344986,0.00022888,2]
[320090516,1711149032037,-200.0,0.00022888,2]
[320090518,1711149032047,-996.6269453,0.00023349,2]
[320090520,1711149032057,-304.78785734,0.00023998,2]
[320090522,1711149032066,-205.13492374,0.00023998,2]
[320090524,1711149032075,-262.99728441,0.00023999,7]
[320090526,1711149032084,-43901.74323375,0.00024,2]
[320090528,1711149032094,-3937.232333,0.00024109,2]
[320090530,1711149032103,-1076.26292536,0.00024201,2]
[320090532,1711149032112,-1473.04894526,0.00024456,2]
[320090534,1711149032123,-1473.04894524,0.00024481,2]
[320090536,1711149032133,-1473.04894524,0.00024507,2]
[320090538,1711149032142,-1473.04894524,0.00024532,2]
[320090540,1711149032151,-155.07132863,0.00024554,2]
[320090542,1711149032160,-1571.32607788,0.00024554,2]
[320090544,1711149032170,-358.95943651,0.00024554,2]
[320090546,1711149032180,-518.08717483,0.00024554,2]
[320090548,1711149032189,-168.73788981,0.00024554,2]
[320090550,1711149032199,-1380.57420865,0.00024554,2]
[320090552,1711149032208,-309.94894713,0.00024554,2]
[320090554,1711149032218,-20.13510938,0.00024554,2]
[320090559,1711149032251,-230.2359354,0.00024108,2]
[320090561,1711149032261,-272.57528783,0.00024108,2]
[320090563,1711149032270,-255.28602487,0.00024554,2]
[320090565,1711149032279,-987.38885002,0.00024554,2]
[320090567,1711149032288,-891.82418922,0.00024555,2]
[320090569,1711149032297,-234.7111418,0.00024555,2]
[320090571,1711149032306,-313.26288222,0.00024556,2]
[320090573,1711149032316,-215.89741008,0.00024556,2]
[320090575,1711149032325,-5546.71132828,0.00024556,2]
[320090577,1711149032336,-7230.37285136,0.00024556,2]
[320090702,1711149038044,-30584.0276796,0.00024556,2]
[320090704,1711149038054,-5794.55815239,0.00024556,2]
[320090706,1711149038067,-2059.5821979,0.00024556,2]
[320090708,1711149038076,-276000.0,0.00024557,2]
[320090711,1711149038086,-1473.04894524,0.00024557,2]
[320090714,1711149038098,-2657.68451481,0.00024557,2]
[320090717,1711149038107,-500.0,0.00024657,2]
[320090720,1711149038116,-246.76955318,0.00024657,2]
[320090723,1711149038126,-500.0,0.00024657,2]